bitfinex/quotes_BTCUSD_20250814
["timestamp","ask_amount","ask_price","bid_price","bid_amount"]
[1755206328462,0.21901405,118240.0,118230.0,0.79418837]
[1755206330568,0.21901405,118240.0,118230.0,1.13418837]
[1755206330569,0.002,118240.0,118230.0,1.13418837]
[1755206331026,0.13428,118240.0,118230.0,1.13418837]
[1755206331682,0.13428,118240.0,118230.0,0.5626118]
[1755206331892,0.13428,118240.0,118230.0,1.13418837]
[1755206332341,0.41835767,118260.0,118250.0,0.74070976]
[1755206332462,0.50317172,118260.0,118250.0,0.74283976]
[1755206332822,0.63537172,118260.0,118250.0,0.74594976]
[1755206333019,0.63537172,118260.0,118250.0,0.77135476]
[1755206333261,0.63537172,118260.0,118250.0,0.19977819]
[1755206333435,0.63537172,118260.0,118250.0,0.77135476]
[1755206334036,0.64137172,118260.0,118250.0,0.77135476]
[1755206334285,0.64435172,118260.0,118250.0,0.19977819]
[1755206334496,1.38731718,118260.0,118250.0,0.19453819]
[1755206334717,1.41819829,118260.0,118250.0,0.19453819]
[1755206334976,1.62165718,118260.0,118250.0,0.19453819]
[1755206335387,1.62165718,118260.0,118240.0,0.16913466]
[1755206335599,0.97089029,118260.0,118250.0,0.16913319]
[1755206335812,0.97089029,118260.0,118240.0,0.19454366]
[1755206336006,0.97089029,118260.0,118250.0,0.16913319]
[1755206336442,0.97316029,118260.0,118250.0,0.16913319]
[1755206336649,0.96716029,118260.0,118250.0,0.16913319]
[1755206336853,1.53873686,118260.0,118250.0,0.16913319]
[1755206337075,1.54473686,118260.0,118250.0,0.16913319]
[1755206337431,1.53873686,118260.0,118250.0,0.16913319]
[1755206337749,1.54473686,118260.0,118250.0,0.16913319]
[1755206337956,1.65162865,118260.0,118240.0,0.19454366]
[1755206338159,0.65639062,118250.0,118240.0,0.19454366]
[1755206338369,0.69534996,118250.0,118240.0,0.19454366]
[1755206339312,0.69534996,118250.0,118240.0,0.19554366]
[1755206339939,0.12377339,118250.0,118240.0,0.19554366]
[1755206340541,0.12150339,118250.0,118240.0,0.19554366]
[1755206340741,0.32150339,118250.0,118240.0,0.20078366]
[1755206341148,0.32650339,118250.0,118240.0,0.20078366]
[1755206341420,0.25870339,118250.0,118240.0,0.77236023]
[1755206341639,0.43779137,118250.0,118240.0,0.77236023]
[1755206342055,0.30559137,118250.0,118240.0,0.77236023]
[1755206342260,0.43775137,118250.0,118240.0,0.77236023]
[1755206342511,0.30559137,118250.0,118240.0,0.77236023]
[1755206342677,0.10559137,118250.0,118240.0,1.11236023]
[1755206342900,0.23787137,118250.0,118240.0,1.11236023]
[1755206344160,0.23787137,118250.0,118240.0,0.54078366]
[1755206344370,0.23787137,118250.0,118240.0,1.11236023]
[1755206346378,0.23787137,118250.0,118240.0,1.11236023]
[1755206349259,0.23787137,118250.0,118240.0,0.54078366]
[1755206349407,0.23787137,118250.0,118240.0,1.11236023]
[1755206351596,0.23792325,118250.0,118240.0,1.11236023]
[1755206351816,0.23792325,118250.0,118240.0,0.54078366]
[1755206352015,0.23792325,118250.0,118240.0,1.11236023]
[1755206353437,0.23792325,118250.0,118240.0,0.54078366]
[1755206353641,0.23792325,118250.0,118240.0,1.11236023]
[1755206354077,0.23792325,118250.0,118240.0,0.54078366]
[1755206354620,0.23990325,118250.0,118240.0,0.54078366]
[1755206355098,0.23990325,118250.0,118240.0,1.11236023]
[1755206355264,0.23792325,118250.0,118240.0,1.11236023]
[1755206355472,0.23792325,118250.0,118240.0,0.54078366]
[1755206358109,0.43990325,118250.0,118240.0,0.54078366]
[1755206359540,0.51407938,118250.0,118240.0,0.19554366]
[1755206359738,0.44781905,118250.0,118240.0,0.19554366]
[1755206361625,0.43990325,118250.0,118240.0,0.19554366]
[1755206361844,0.44216325,118250.0,118240.0,0.19554366]
[1755206363979,0.61129644,118250.0,118240.0,0.19554366]
[1755206364422,0.44216325,118250.0,118240.0,0.19554366]
[1755206365315,0.43990325,118250.0,118240.0,0.19554366]
[1755206366187,0.60903644,118250.0,118240.0,0.19554366]
[1755206366432,0.43990325,118250.0,118240.0,0.19554366]
[1755206367313,0.60903644,118250.0,118240.0,0.19554366]
[1755206367725,0.43990325,118250.0,118240.0,0.19554366]
[1755206369094,0.60903644,118250.0,118240.0,0.19554366]
[1755206369338,0.43990325,118250.0,118240.0,0.19554366]
[1755206371235,0.30762325,118250.0,118240.0,0.19554366]
[1755206371449,0.44026325,118250.0,118240.0,0.19554366]
[1755206371665,0.44026325,118250.0,118240.0,0.19862366]
[1755206372114,0.44026349,118250.0,118240.0,0.19862366]
[1755206372336,0.42443405,118250.0,118240.0,0.19862366]
[1755206372884,0.08981405,118250.0,118240.0,0.20063366]
[1755206373120,0.42257405,118250.0,118240.0,0.20063366]
[1755206378866,0.42253405,118250.0,118240.0,0.20063366]
[1755206379319,0.22253405,118250.0,118240.0,0.20063366]
[1755206379533,0.42253405,118250.0,118240.0,0.20063366]
[1755206381248,0.42253405,118250.0,118240.0,0.22126224]
[1755206381457,0.42253405,118250.0,118240.0,0.56126224]
[1755206386430,0.13772,118250.0,118240.0,0.56126224]
[1755206387396,0.13272,118250.0,118240.0,0.56026224]
[1755206387606,0.13372,118250.0,118240.0,0.57726224]
[1755206389137,0.13572,118250.0,118240.0,0.60526224]
[1755206390404,0.13572,118250.0,118240.0,0.73762224]
[1755206392412,0.13572,118250.0,118240.0,0.60526224]
[1755206397668,0.1377,118250.0,118240.0,0.60017224]
[1755206398335,0.13572,118250.0,118240.0,0.60540224]
[1755206400615,0.003,118250.0,118240.0,0.60540224]
[1755206400827,0.135,118250.0,118240.0,0.60540224]
[1755206405995,0.13492,118250.0,118240.0,0.60540224]
[1755206411376,0.2,118260.0,118240.0,0.75461126]
[1755206411584,0.41657405,118260.0,118250.0,0.51336151]
[1755206411805,0.41657405,118260.0,118250.0,0.51412319]
[1755206412647,0.61657405,118260.0,118250.0,0.53952519]
[1755206412856,0.33176,118260.0,118250.0,0.55697421]
[1755206413062,0.2,118280.0,118270.0,0.16910459]
[1755206413272,0.41857877,118280.0,118270.0,0.17409459]
[1755206413698,0.41857877,118280.0,118270.0,0.19949459]
[1755206414359,0.41857877,118280.0,118270.0,0.20049459]
[1755206415560,0.42357877,118280.0,118270.0,0.20049459]
[1755206415750,0.42357877,118280.0,118270.0,0.19550459]
[1755206420695,0.22357877,118280.0,118270.0,0.19550459]
[1755206423316,0.22161877,118280.0,118270.0,0.20049459]
[1755206424833,0.22357877,118280.0,118270.0,0.20049459]
[1755206428596,0.22357877,118280.0,118270.0,0.54049459]
[1755206429226,0.22161877,118280.0,118270.0,0.54049459]
[1755206435459,0.22357877,118280.0,118270.0,0.54049459]
[1755206439133,0.42357877,118280.0,118270.0,0.54049459]
[1755206443766,0.42357877,118280.0,118270.0,0.53550459]
[1755206444762,0.42357877,118280.0,118270.0,0.53857459]
[1755206444976,0.42357877,118280.0,118270.0,0.53550459]
[1755206445416,0.42584877,118280.0,118270.0,0.53550459]
[1755206445741,0.64133639,118280.0,118270.0,0.19550459]
[1755206449252,0.6413337,118280.0,118270.0,0.19550459]
[1755206453363,0.64145646,118280.0,118270.0,0.19550459]
[1755206454541,0.6413337,118280.0,118270.0,0.19538183]
[1755206454946,0.6390637,118280.0,118270.0,0.19538183]
[1755206455793,0.6413337,118280.0,118270.0,0.19538183]
[1755206456196,0.6390637,118280.0,118270.0,0.19538183]
[1755206458729,0.81042399,118280.0,118270.0,0.0264]
[1755206458937,0.81042399,118280.0,118270.0,0.19550459]
[1755206461448,0.81041236,118280.0,118270.0,0.19550459]
[1755206466526,0.80814236,118280.0,118270.0,0.19550459]
[1755206474046,0.63905207,118280.0,118270.0,0.19550459]
[1755206474401,0.50773207,118280.0,118270.0,0.19550459]
[1755206474546,0.63901207,118280.0,118270.0,0.19550459]
[1755206475564,0.8081079,118280.0,118270.0,0.19550459]
[1755206476835,0.63901761,118280.0,118270.0,0.19550459]
[1755206477251,0.8081079,118280.0,118270.0,0.19550459]
[1755206478760,0.63901761,118280.0,118270.0,0.19550459]
[1755206481165,0.63901761,118280.0,118270.0,0.19861459]
[1755206481603,0.63902167,118280.0,118270.0,0.19861459]
[1755206483383,0.63902167,118280.0,118270.0,0.20077459]
[1755206484401,0.63902489,118280.0,118270.0,0.20077459]
[1755206486607,0.64694986,118280.0,118270.0,0.20077459]
[1755206486820,0.51370986,118280.0,118270.0,0.20077459]
[1755206487022,0.63702489,118280.0,118270.0,0.20077459]
[1755206488471,0.63702489,118280.0,118270.0,0.19977459]
[1755206488672,0.63202489,118280.0,118270.0,0.19977459]
[1755206488879,0.63202489,118280.0,118270.0,0.20077459]
[1755206489097,0.63702489,118280.0,118270.0,0.20077459]
[1755206489301,0.43702489,118280.0,118270.0,0.20077459]
[1755206501914,0.43702201,118280.0,118270.0,0.20077459]
[1755206502998,0.43900201,118280.0,118270.0,0.20077459]
[1755206503584,0.43702201,118280.0,118270.0,0.20077459]
[1755206504154,0.43702201,118280.0,118270.0,0.84405079]
[1755206505072,0.43900201,118280.0,118270.0,0.19550459]
[1755206505285,0.36914749,118240.0,118230.0,0.10620752]
[1755206505529,0.4,118220.0,118200.0,0.82391474]
[1755206505733,0.4,118220.0,118210.0,0.81761662]
[1755206505734,0.41584324,118220.0,118210.0,0.81761662]
[1755206505939,0.71815935,118220.0,118210.0,0.6432762]
[1755206506151,0.70231611,118220.0,118200.0,0.84633074]
[1755206506361,0.89728067,118210.0,118200.0,0.025416]
[1755206506607,0.4,118200.0,118190.0,0.85040225]
[1755206506879,0.61597405,118200.0,118190.0,0.57469405]
[1755206507076,0.61597405,118200.0,118190.0,0.23518585]
[1755206507288,0.61597405,118200.0,118190.0,0.57518585]
[1755206507715,0.61597405,118200.0,118190.0,0.23518585]
[1755206507921,0.61597405,118200.0,118190.0,0.57518585]
[1755206508170,0.61797405,118200.0,118190.0,0.60618585]
[1755206508606,0.61997405,118200.0,118190.0,0.62218585]
[1755206508802,0.61997405,118200.0,118190.0,0.63849825]
[1755206509008,0.61997405,118200.0,118190.0,0.62218585]
[1755206512715,0.61997405,118200.0,118190.0,0.60468585]
[1755206515329,1.21035907,118200.0,118190.0,0.25953585]
[1755206515553,0.6377876,118200.0,118190.0,0.25953585]
[1755206516702,0.6377876,118200.0,118190.0,0.26253585]
[1755206516892,0.6377876,118200.0,118190.0,0.25953585]
[1755206517562,0.6377876,118200.0,118190.0,0.26253585]
[1755206518837,0.6377876,118200.0,118190.0,0.23926785]
[1755206519044,0.6357076,118200.0,118190.0,0.81183932]
[1755206520122,0.6357076,118200.0,118190.0,0.23926785]
[1755206521630,0.63569508,118200.0,118190.0,0.23926785]
[1755206521878,0.63765508,118200.0,118190.0,0.23711785]
[1755206522711,0.63765508,118200.0,118190.0,0.23411785]
[1755206523379,0.63565508,118200.0,118190.0,0.20311785]
[1755206523599,0.63365508,118200.0,118190.0,0.18711785]
[1755206523806,0.63665508,118200.0,118190.0,0.21711785]
[1755206524022,0.63665508,118200.0,118190.0,0.21926785]
[1755206524236,0.63469508,118200.0,118190.0,0.79183932]
[1755206524725,0.63469508,118200.0,118190.0,0.21926785]
[1755206525812,0.63469508,118200.0,118190.0,0.79183932]
[1755206526264,0.10353508,118200.0,118190.0,0.92299932]
[1755206526474,0.08781405,118200.0,118190.0,0.92299932]
[1755206527114,0.34688103,118210.0,118200.0,0.50920473]
[1755206527327,0.43169508,118210.0,118200.0,1.0837862]
[1755206527533,0.43169508,118210.0,118200.0,1.0867162]
[1755206528224,0.43169508,118210.0,118200.0,0.7487162]
[1755206528441,0.43469508,118210.0,118200.0,0.7487162]
[1755206531180,0.63469508,118210.0,118200.0,0.17614473]
[1755206531624,0.63665508,118210.0,118200.0,0.7487162]
[1755206531845,0.63469508,118210.0,118200.0,0.17614473]
[1755206532344,0.64258395,118210.0,118200.0,0.7487162]
[1755206533195,0.64258472,118210.0,118200.0,0.7487162]
[1755206534495,0.44258472,118210.0,118200.0,1.32128767]
[1755206535358,0.44258472,118210.0,118200.0,0.7487162]
[1755206535587,0.24258472,118210.0,118200.0,1.66128767]
[1755206535800,0.15777067,118210.0,118200.0,1.66128767]
[1755206536485,0.15777067,118210.0,118200.0,1.0887162]
[1755206537818,0.15777067,118210.0,118200.0,1.66128767]
[1755206538292,0.15777067,118210.0,118200.0,1.0887162]
[1755206539368,0.15777067,118210.0,118200.0,1.2198362]
[1755206540244,0.15777067,118210.0,118200.0,1.79240767]
[1755206540672,0.15973067,118210.0,118200.0,1.2198362]
[1755206540859,0.15777067,118210.0,118200.0,1.2198362]
[1755206541666,0.35777067,118210.0,118200.0,1.2198362]
[1755206541883,0.35790603,118210.0,118200.0,1.0887162]
[1755206543229,0.35790603,118210.0,118200.0,1.66128767]
[1755206543648,0.35790603,118210.0,118200.0,1.79240767]
[1755206545410,0.02674603,118210.0,118200.0,1.80985669]
[1755206546067,0.01883069,118210.0,118200.0,1.80985669]
[1755206546532,0.01583069,118210.0,118200.0,1.80985669]
[1755206546756,0.01683069,118210.0,118200.0,1.82785669]
[1755206547018,0.01883069,118210.0,118200.0,1.85785669]
[1755206548370,0.01883069,118210.0,118200.0,0.71271375]
[1755206548636,0.01883069,118210.0,118200.0,1.85785669]
[1755206551471,0.003,118210.0,118200.0,1.85785669]
[1755206551723,0.01883031,118210.0,118200.0,1.85785669]
[1755206552160,0.003,118210.0,118200.0,1.85785669]
[1755206555467,0.003,118210.0,118200.0,1.1367162]
[1755206555687,0.42085405,118210.0,118200.0,1.1317762]
[1755206555919,0.42312405,118210.0,118200.0,1.1317762]
[1755206556343,0.62312405,118210.0,118200.0,1.1317762]
[1755206556566,0.63896889,118210.0,118200.0,0.7917762]
[1755206556784,0.6468914,118210.0,118200.0,0.7917762]
[1755206557239,0.63896889,118210.0,118200.0,0.7917762]
[1755206557452,0.63669889,118210.0,118200.0,0.7917762]
[1755206557663,0.62085405,118210.0,118200.0,0.7947062]
[1755206558972,0.62085405,118210.0,118200.0,0.7917762]
[1755206559194,0.62085405,118210.0,118200.0,0.21920473]
[1755206559416,0.62085405,118210.0,118200.0,0.7917762]
[1755206559877,0.62312405,118210.0,118200.0,0.7917762]
[1755206560741,0.62312405,118210.0,118200.0,0.21920473]
[1755206560965,0.62312405,118210.0,118200.0,0.7917762]
[1755206561891,0.62085405,118210.0,118200.0,0.7966862]
[1755206562076,0.62085405,118210.0,118200.0,0.7947062]
[1755206562342,0.62085405,118210.0,118200.0,0.7917762]
[1755206568050,0.62085405,118210.0,118200.0,0.7947062]
[1755206568294,0.62085405,118210.0,118200.0,0.7966862]
[1755206570548,0.62085405,118210.0,118200.0,0.7917762]
[1755206571653,0.62085405,118210.0,118200.0,0.21920473]
[1755206571856,0.62085405,118210.0,118200.0,0.7917762]
[1755206572589,0.61885405,118210.0,118200.0,0.7917762]
[1755206578118,0.61885405,118210.0,118200.0,0.7947062]
[1755206579641,0.61885405,118210.0,118200.0,0.7917762]
[1755206581275,0.62112405,118210.0,118200.0,0.21920473]
[1755206583082,0.79031447,118210.0,118200.0,0.21920473]
[1755206583501,0.62112405,118210.0,118200.0,0.21920473]
[1755206584278,0.63696847,118210.0,118200.0,0.21920473]
[1755206586157,0.65133075,118210.0,118200.0,0.21920473]
[1755206587656,0.65133018,118210.0,118200.0,0.21920473]
[1755206590236,0.63548633,118210.0,118200.0,0.21920473]
[1755206590670,0.80467675,118210.0,118200.0,0.21920473]
[1755206590879,0.82051732,118210.0,118200.0,0.21920473]
[1755206591351,1.40868303,118210.0,118200.0,0.05]
[1755206591568,1.4166031,118210.0,118200.0,0.05]
[1755206591774,1.4483431,118210.0,118200.0,0.05]
[1755206591991,1.43274886,118210.0,118200.0,0.05]
[1755206592214,0.86017739,118210.0,118200.0,0.05]
[1755206592465,0.16920473,118200.0,118190.0,0.16971001]
[1755206592656,0.4085319,118200.0,118190.0,0.16971001]
[1755206592883,0.42664247,118200.0,118190.0,0.16971085]
[1755206593328,0.25743774,118200.0,118190.0,0.16971085]
[1755206593547,0.42664247,118200.0,118190.0,0.16971085]
[1755206593778,0.42764247,118200.0,118190.0,0.17271085]
[1755206594283,0.24259717,118200.0,118190.0,0.17271085]
[1755206594487,0.22102405,118200.0,118190.0,0.17271085]
[1755206596144,0.21875405,118200.0,118190.0,0.17271085]
[1755206597876,0.26952405,118200.0,118190.0,0.17271085]
[1755206602531,0.26952405,118200.0,118190.0,0.17772085]
[1755206603744,0.26952405,118200.0,118190.0,0.17570085]
[1755206606509,0.26952405,118200.0,118190.0,0.17772085]
[1755206607088,0.28535651,118200.0,118190.0,0.17772085]
[1755206607749,0.31940775,118200.0,118190.0,0.17271085]
[1755206607956,0.23458858,118200.0,118190.0,0.17271085]
[1755206608506,0.23458858,118200.0,118190.0,0.17570085]
[1755206609081,0.27257021,118200.0,118190.0,0.17772085]
[1755206609324,0.27257021,118200.0,118190.0,0.17570085]
[1755206609544,0.27257633,118200.0,118190.0,0.17271085]
[1755206610684,0.27257633,118200.0,118190.0,0.17570085]
[1755206610891,0.27257633,118200.0,118190.0,0.17772085]
[1755206616486,0.2345947,118200.0,118190.0,0.17772085]
[1755206620066,1.13287776,118200.0,118190.0,0.17271085]
[1755206620290,1.86093353,118200.0,118190.0,0.0034918]
[1755206620552,0.56923337,118180.0,118160.0,0.18128546]
[1755206620772,1.02915883,118170.0,118160.0,0.18141021]
[1755206620989,0.2334647,118170.0,118160.0,0.18338021]
[1755206621201,1.04696948,118170.0,118160.0,0.18141021]
[1755206621425,1.04696948,118170.0,118160.0,0.17824021]
[1755206622337,1.04896948,118170.0,118160.0,0.17824021]
[1755206622780,0.40471239,118170.0,118160.0,0.17824021]
[1755206622989,0.2354647,118170.0,118160.0,0.17824021]
[1755206623197,0.2354647,118170.0,118160.0,0.18141021]
[1755206623421,0.45066691,118170.0,118160.0,0.00898785]
[1755206623640,0.45066691,118170.0,118160.0,0.17178676]
[1755206623923,0.4800872,118170.0,118160.0,0.17178676]
[1755206624180,0.45066691,118170.0,118160.0,0.17178676]
[1755206624428,0.45066691,118170.0,118160.0,0.00252475]
[1755206624655,0.45066691,118170.0,118160.0,0.17178676]
[1755206624868,0.28141922,118170.0,118160.0,0.17178676]
[1755206627575,0.28141922,118170.0,118160.0,0.17495676]
[1755206628022,0.28141922,118170.0,118160.0,0.17178676]
[1755206628650,0.28141922,118170.0,118160.0,0.17375676]
[1755206628842,0.27944922,118170.0,118160.0,0.17692676]
[1755206629090,0.3169425,118170.0,118160.0,0.17692676]
[1755206629714,0.3189225,118170.0,118160.0,0.17692676]
[1755206629936,0.3189225,118170.0,118160.0,0.17495676]
[1755206630301,0.3189225,118170.0,118160.0,0.17692676]
[1755206630728,0.3189225,118170.0,118160.0,0.17178676]
[1755206630938,0.3189225,118170.0,118160.0,0.17495676]
[1755206631155,0.3188966,118170.0,118160.0,0.17495676]
[1755206632137,0.3188966,118170.0,118160.0,0.17178676]
[1755206632934,0.53891429,118170.0,118160.0,0.17178676]
[1755206633140,0.3696666,118170.0,118160.0,0.17178676]
[1755206633401,0.53891429,118170.0,118160.0,0.17178676]
[1755206634030,0.54118429,118170.0,118160.0,0.17178676]
[1755206634236,0.53891429,118170.0,118160.0,0.17178676]
[1755206634502,0.3696666,118170.0,118160.0,0.17178676]
[1755206635974,0.3696666,118170.0,118160.0,0.17495676]
[1755206640007,0.53891429,118170.0,118160.0,0.17495676]
[1755206640216,0.53891429,118170.0,118160.0,0.17178676]
[1755206641753,0.53891488,118170.0,118160.0,0.17178676]
[1755206642428,0.32371267,118170.0,118160.0,0.17692676]
[1755206642645,0.49296036,118170.0,118160.0,0.17692676]
[1755206642856,0.44219036,118170.0,118160.0,0.17692676]
[1755206643287,1.08676636,118170.0,118160.0,0.17178676]
[1755206643749,0.44219036,118170.0,118160.0,0.17178676]
[1755206643972,0.5270116,118170.0,118160.0,0.17178676]
[1755206644262,1.23924946,118170.0,118160.0,0.00252475]
[1755206644488,0.62003201,118160.0,118150.0,0.0004]
[1755206644711,1.40475073,118160.0,118150.0,0.00054757]
[1755206644968,1.74475073,118160.0,118150.0,0.00054757]
[1755206645179,1.92957197,118160.0,118150.0,0.00054757]
[1755206645620,2.01957197,118160.0,118150.0,0.00054757]
[1755206645871,2.02157197,118160.0,118150.0,0.00054757]
[1755206646773,1.37699597,118160.0,118150.0,0.00154757]
[1755206647072,1.94830037,118160.0,118150.0,0.00154757]
[1755206647297,1.37499597,118160.0,118150.0,0.00154757]
[1755206647515,2.00264637,118160.0,118150.0,0.00054757]
[1755206647733,2.00664637,118160.0,118150.0,0.00054757]
[1755206648150,1.43334197,118160.0,118150.0,0.00054757]
[1755206648361,2.00664637,118160.0,118150.0,0.00054757]
[1755206648987,2.13744637,118160.0,118150.0,0.00054757]
[1755206649389,0.16927634,118150.0,118140.0,0.0004]
[1755206649598,1.1116159,118150.0,118140.0,0.00044907]
[1755206649808,1.12546248,118150.0,118140.0,0.00044907]
[1755206650031,0.56929067,118140.0,118130.0,0.00357]
[1755206650166,0.80863639,118140.0,118130.0,0.00012509]
[1755206650387,0.80863941,118140.0,118130.0,0.00012509]
[1755206650589,0.89547065,118140.0,118130.0,0.00012509]
[1755206650975,0.89864065,118140.0,118130.0,0.00012509]
[1755206651199,1.52271505,118140.0,118130.0,0.00012508]
[1755206651420,1.62864794,118140.0,118130.0,0.00212508]
[1755206651857,1.64230443,118140.0,118130.0,0.00212508]
[1755206652077,1.67172472,118140.0,118130.0,0.00212508]
[1755206652778,1.67172472,118140.0,118130.0,0.00012508]
[1755206653192,1.67272472,118140.0,118130.0,0.00012508]
[1755206653562,1.67472472,118140.0,118130.0,0.00012508]
[1755206653714,1.71232259,118140.0,118130.0,0.00012508]
[1755206654522,1.13901819,118140.0,118130.0,0.00012508]
[1755206654735,1.6829023,118140.0,118130.0,0.00012508]
[1755206656298,1.66707917,118140.0,118130.0,0.00012508]
[1755206656493,1.68287769,118140.0,118130.0,0.00012508]
[1755206662146,1.68285126,118140.0,118130.0,0.00012508]
[1755206664255,1.10954686,118140.0,118130.0,0.00012508]
[1755206664476,1.68285126,118140.0,118130.0,0.00012508]
[1755206666193,1.70777244,118140.0,118130.0,0.00012508]
[1755206666428,2.04777244,118140.0,118130.0,0.00012508]
[1755206666653,2.06597165,118140.0,118130.0,0.00012508]
[1755206666897,2.78320123,118140.0,118130.0,0.00012508]
[1755206667336,1.49266725,118140.0,118130.0,0.00012508]
[1755206667559,2.78320123,118140.0,118130.0,0.00012508]
[1755206668299,3.48311879,118140.0,118130.0,0.00012508]
[1755206668514,0.73499618,118130.0,118120.0,0.0004]
[1755206668732,7.50985751,118130.0,118120.0,0.0004]
[1755206668920,6.93608906,118130.0,118120.0,0.0004]
[1755206669187,7.59467156,118130.0,118120.0,0.0004]
[1755206669414,7.59467156,118130.0,118110.0,0.0004]
[1755206669415,2.14999643,118120.0,118110.0,0.0004]
[1755206669634,7.36960702,118120.0,118110.0,0.0004]
[1755206669858,7.4840957,118120.0,118110.0,0.0004]
[1755206670077,2.6167357,118120.0,118110.0,0.0004]
[1755206670334,1.48740838,118120.0,118110.0,0.0004]
[1755206670590,7.65994528,118120.0,118110.0,0.0004]
[1755206670824,7.65994528,118120.0,118100.0,0.0004]
[1755206670825,0.39502485,118110.0,118100.0,0.0004]
[1755206671060,5.6994634,118110.0,118100.0,0.0004]
[1755206671295,6.34610887,118110.0,118100.0,0.0004]
[1755206671528,1.3439008,118090.0,118080.0,0.0004]
[1755206671766,1.46537966,118090.0,118080.0,0.0004]
[1755206671998,2.04231811,118090.0,118080.0,0.0004]
[1755206672224,1.5533709,118090.0,118080.0,0.0004]
[1755206672686,1.25053962,118090.0,118080.0,0.0004]
[1755206672908,1.77353807,118090.0,118080.0,0.00089227]
[1755206673137,1.79845925,118090.0,118080.0,0.00089227]
[1755206673588,2.15765255,118090.0,118080.0,0.00089227]
[1755206673820,6.61355154,118090.0,118080.0,0.00089227]
[1755206674045,7.21331999,118090.0,118080.0,0.00089227]
[1755206674491,6.61455154,118090.0,118080.0,0.00089227]
[1755206674715,7.18831999,118090.0,118080.0,0.00089227]
[1755206674935,7.19171399,118090.0,118080.0,0.00089227]
[1755206675735,1.22138692,118090.0,118080.0,0.00303227]
[1755206675963,1.25280838,118090.0,118080.0,0.00597227]
[1755206676184,1.08344603,118090.0,118080.0,0.17534896]
[1755206676409,0.59344603,118090.0,118080.0,0.17534896]
[1755206676639,0.59360603,118090.0,118080.0,0.74911741]
[1755206676859,0.48570476,118090.0,118080.0,0.74911741]
[1755206677081,0.48013187,118090.0,118080.0,0.74911741]
[1755206677519,1.28300508,118090.0,118080.0,0.00089227]
[1755206677736,0.31937669,118080.0,118070.0,0.0004]
[1755206677948,1.10962981,118080.0,118070.0,0.0004]
[1755206678167,1.11277981,118080.0,118070.0,0.0004]
[1755206678390,1.11277981,118080.0,118070.0,0.00236]
[1755206678391,1.19760105,118080.0,118070.0,0.00236]
[1755206678618,1.22885182,118080.0,118070.0,0.00236]
[1755206678841,0.2,118060.0,118050.0,0.17300973]
[1755206679057,0.46270822,118060.0,118050.0,0.16994485]
[1755206679320,0.6321136,118060.0,118050.0,0.17190485]
[1755206679552,0.71693484,118060.0,118050.0,0.17190485]
[1755206679761,0.54752946,118060.0,118050.0,0.17509485]
[1755206679982,0.46270822,118060.0,118050.0,0.17509485]
[1755206680212,0.46270822,118060.0,118050.0,0.17709485]
[1755206680456,0.6321136,118060.0,118050.0,0.17709485]
[1755206680689,0.6321136,118060.0,118050.0,0.18009485]
[1755206680909,0.71693484,118060.0,118050.0,0.18009485]
[1755206681590,0.90586708,118060.0,118050.0,0.01067512]
[1755206681838,1.47963553,118060.0,118050.0,0.00748512]
[1755206682073,1.48760188,118060.0,118050.0,0.00748512]
[1755206682524,1.48760188,118060.0,118050.0,0.00552512]
[1755206682525,1.53430211,118060.0,118050.0,0.00552512]
[1755206682744,1.63430211,118060.0,118050.0,0.00352512]
[1755206682954,1.63430211,118060.0,118050.0,0.00052512]
[1755206683219,1.63430211,118060.0,118050.0,0.00352512]
[1755206683441,1.63430211,118060.0,118050.0,0.00152512]
[1755206683655,1.63430211,118060.0,118050.0,0.00052512]
[1755206683863,1.06053366,118060.0,118050.0,0.00152512]
[1755206684526,1.63430211,118060.0,118050.0,0.00152512]
[1755206686114,1.86258329,118060.0,118050.0,0.00152512]
[1755206686995,1.86458329,118060.0,118050.0,0.00152512]
[1755206687259,1.86458329,118060.0,118050.0,0.00052512]
[1755206688622,1.86658329,118060.0,118050.0,0.00052512]
[1755206688829,1.86658329,118060.0,118030.0,0.0175]
[1755206688830,0.71943409,118040.0,118030.0,0.0175]
[1755206689038,1.72572328,118040.0,118030.0,0.01946]
[1755206689468,1.75697405,118040.0,118030.0,0.01946]
[1755206689959,1.76219405,118040.0,118030.0,0.01946]
[1755206690168,1.76219405,118040.0,118030.0,0.02046]
[1755206691321,1.76219405,118040.0,118030.0,0.0185]
[1755206691524,2.3359625,118040.0,118030.0,0.00716218]
[1755206692366,2.36088368,118040.0,118030.0,0.00616218]
[1755206692789,2.36288368,118040.0,118030.0,0.00616218]
[1755206693000,2.41265368,118040.0,118030.0,0.00616218]
[1755206693207,2.41165368,118040.0,118030.0,0.00616218]
[1755206693432,2.41365368,118040.0,118030.0,0.00616218]
[1755206694699,2.41565368,118040.0,118030.0,0.00616218]
[1755206695193,0.98592359,118040.0,118030.0,0.00616218]
[1755206695471,1.07065359,118040.0,118030.0,0.00812218]
[1755206695692,1.24442204,118040.0,118030.0,0.17757062]
[1755206695926,1.44442204,118040.0,118030.0,0.18076062]
[1755206696156,1.44442204,118040.0,118030.0,0.01131218]
[1755206696389,2.10623173,118040.0,118030.0,0.00616218]
[1755206696605,2.10423173,118040.0,118030.0,0.00616218]
[1755206696829,1.53046328,118040.0,118030.0,0.00616218]
[1755206697547,1.53046328,118040.0,118030.0,0.00716218]
[1755206698177,1.53046043,118040.0,118030.0,0.00716218]
[1755206698709,0.95419198,118040.0,118030.0,0.01231218]
[1755206698962,0.95419198,118040.0,118030.0,0.00912218]
[1755206699392,1.52796043,118040.0,118030.0,0.00912218]
[1755206699828,0.95419198,118040.0,118030.0,0.00912218]
[1755206700050,1.53318043,118040.0,118030.0,0.00912218]
[1755206700261,1.53318043,118040.0,118030.0,0.00716218]
[1755206701372,2.33188051,118040.0,118030.0,0.00716218]
[1755206701586,2.35105924,118040.0,118030.0,0.00716218]
[1755206701771,1.77729079,118040.0,118030.0,0.00716218]
[1755206702102,1.77729079,118040.0,118030.0,0.00616218]
[1755206702327,1.20252234,118040.0,118030.0,0.00616218]
[1755206702553,1.78518109,118040.0,118030.0,0.00616218]
[1755206702759,2.36094954,118040.0,118030.0,0.00616218]
[1755206702976,2.36294954,118040.0,118030.0,0.00616218]
[1755206703906,1.21541264,118040.0,118030.0,0.00616218]
[1755206704125,2.36294954,118040.0,118030.0,0.00616218]
[1755206704555,0.7194628,118020.0,118010.0,0.0004]
[1755206704765,1.75114718,118020.0,118010.0,0.00044923]
[1755206705005,1.75429718,118020.0,118010.0,0.00044923]
[1755206705227,1.76218631,118020.0,118010.0,0.00044923]
[1755206705654,1.74090872,118020.0,118010.0,0.00044923]
[1755206705866,1.77958392,118020.0,118010.0,0.00044923]
[1755206706077,1.77958392,118020.0,118010.0,0.00144923]
[1755206706345,1.20581547,118020.0,118010.0,0.00144923]
[1755206706561,1.77958392,118020.0,118010.0,0.00144923]
[1755206707268,1.79777106,118020.0,118010.0,0.00144923]
[1755206707481,1.88777106,118020.0,118010.0,0.00144923]
[1755206708663,1.9154385,118020.0,118010.0,0.00144923]
[1755206710602,1.94035968,118020.0,118010.0,0.00144923]
[1755206711043,2.02938968,118020.0,118010.0,0.00144923]